[Event "TUR-ch U13-18 Open 2023"]
[Site "Antalya"]
[Date "2023.01.24"]
[Round "4"]
[White "Cakir, Mert"]
[Black "Hasirci, Ozgur Deniz"]
[Result "0-1"]
[ECO "B99"]
[WhiteElo "1530"]
[BlackElo "1773"]
[Annotator "NA RC COMBH"]
[PlyCount "97"]
[EventDate "2023.01.17"]
[EventType "swiss"]
[EventCountry "TUR"]
[SourceTitle "playchess.com"]
[Source "ChessBase"]
[SourceQuality "1"]
[TimeControl "5400+30"]

1. e4 {[%emt 0:01:00]} c5 {[%emt 0:01:00]} 2. Nf3 {[%emt 0:00:30]} d6 {[%emt 0:00:30]} 3. d4 {[%emt 0:00:30]} cxd4 {[%emt 0:00:30]} 4. Nxd4 {[%emt 0:00:30]} Nf6 {[%emt 0:00:30]} 5. Nc3 {[%emt 0:00:30]} a6 {[%emt 0:00:00]} 6. Bg5 {[%emt 0:00:00]} e6 {[%emt 0:00:00]} 7. f4 {[%emt 0:00:00]} Be7 {[%emt 0:00:00]} 8. Qf3 {[%emt 0:00:00]} Qc7 {[%emt 0:00:00]} 9. O-O-O {[%emt 0:00:00]} Nbd7 {[%emt 0:00:30]} 10. g4 {[%emt 0:00:00]} h6 {[%emt 0:00:00]} 11. Bxf6 {[%emt 0:00:00]} Bxf6 {[%emt 0:00:00]} 12. h4 {[%emt 0:00:00]} Nb6 {[%emt 0:00:00]} 13. g5 {[%emt 0:11:00]} Bxd4 {[%emt 0:00:00]} 14. Rxd4 {[%emt 0:00:30]} Qc5 {[%emt 0:00:00]} 15. Rd2 {[%emt 0:05:30]} Bd7 {[%emt 0:00:00]} 16. g6 {[%emt 0:11:30]} fxg6 {[%emt 0:13:30]} 17. Be2 {[%emt 0:01:30]} O-O-O {[%emt 0:17:30]} 18. Rhd1 {[%emt 0:01:30]} Be8 {[%emt 0:06:30]} 19. Qh3 {[%emt 0:02:30]} Bf7 {[%emt 0:03:30]} 20. Nd5 {[%emt 0:27:30]} Kb8 {[%emt 0:09:30]} 21. Nxb6 {[%emt 0:03:30]} Qxb6 {[%emt 0:00:00]} 22. Bc4 {[%emt 0:03:30]} Rhe8 {[%emt 0:05:00]} 23. f5 {[%emt 0:05:30]} gxf5 {[%emt 0:01:30]} 24. exf5 {[%emt 0:00:30]} Bh5 {[%emt 0:03:30]} 25. Rf1 {[%emt 0:02:30]} exf5 {[%emt 0:02:30]} 26. Qxf5 {[%emt 0:02:30]} Re5 {[%emt 0:04:30]} 27. Qf4 {[%emt 0:02:50]} Rde8 {[%emt 0:03:30]} 28. Qg3 {[%emt 0:04:22]} Qb4 {[%emt 0:04:30]} 29. Bd5 {[%emt 0:03:45]} Re3 {[%emt 0:03:30]} 30. c3 {[%emt 0:02:26]} Qxc3+ {[%emt 0:00:30]} 31. bxc3 {[%emt 0:00:30]} Rxg3 {[%emt 0:00:30]} 32. Kb2 {[%emt 0:00:31]} Re7 {[%emt 0:11:19]} 33. Rf5 {[%emt 0:03:16]} Bg6 {[%emt 0:00:54]} 34. Rf8+ {[%emt 0:00:14]} Kc7 {[%emt 0:02:59]} 35. Rd4 {[%emt 0:00:46]} Be8 {[%emt 0:03:36]} 36. Rc4+ {[%emt 0:02:37]} Bc6 {[%emt 0:00:06]} 37. Kb3 {[%emt 0:02:39]} Rg1 {[%emt 0:02:34]} 38. Ra8 {[%emt 0:01:27]} Rb1+ {[%emt 0:02:06]} 39. Kc2 {[%emt 0:00:30]} Rb6 {[%emt 0:00:00]} 40. Bf3 {[%emt 0:01:03]} Re3 {[%emt 0:00:52]} 41. Bg4 {[%emt 0:00:19]} d5 {[%emt 0:00:28]} 42. Rf4 {[%emt 0:00:19]} Re7 {[%emt 0:00:30]} 43. h5 {[%emt 0:00:40]} Bd7 {[%emt 0:01:00]} 44. Bf3 {[%emt 0:00:24]} Rd6 {[%emt 0:01:10]} 45. Rb4 {[%emt 0:00:29]} Bc6 {[%emt 0:00:56]} 46. Rf8 {[%emt 0:01:23]} Rd8 {[%emt 0:00:32]} 47. Rf5 {[%emt 0:00:00]} Kd6 {[%emt 0:00:56]} 48. Kd3 {[%emt 0:00:58]} Re5 {[%emt 0:00:39]} 49. Rf7 {[%emt 0:01:02]} 0-1

[Event "TUR-ch U13-18 Open 2023"]
[Site "Antalya"]
[Date "2023.01.24"]
[Round "4"]
[White "Arslan, Mustafa Alparslan"]
[Black "Celik, Ege Yigit"]
[Result "0-1"]
[ECO "B20"]
[WhiteElo "1439"]
[BlackElo "1891"]
[Annotator "NA RC COMBH"]
[PlyCount "64"]
[EventDate "2023.01.17"]
[EventType "swiss"]
[EventCountry "TUR"]
[SourceTitle "playchess.com"]
[Source "ChessBase"]
[SourceQuality "1"]
[TimeControl "5400+30"]

{[%evp 8,62,1,32767,32767,32767,32767,32767,32767,-28,-8,-22,0,0,10,32767,0,-116,-67,-71,-63,-110,-105,-117,32767,32767,32767,32767,32767,32767,-147,-133,-147,-146,-153,32767,32767,32767,32767,32767,32767,32767,32767,-1325,32767,-1156,-1404,32767,-1806,-1537,32767,32767,32767,32767,32767,32767,-1391]} 1. e4 {[%emt 0:01:00]} c5 {[%emt 0:01:00]} 2. b3 {[%emt 0:00:00]} Nc6 {[%emt 0:00:30]} 3. Bb2 {[%emt 0:00:00]} e5 {[%emt 0:00:30]} 4. Bb5 {[%emt 0:01:30]} d6 {[%emt 0:00:30]} 5. Nc3 {[%emt 0:02:30]} g6 {[%emt 0:02:30]} 6. Nge2 {[%emt 0:02:30]} Bg7 {[%emt 0:01:30]} 7. O-O {[%emt 0:02:30]} Nge7 {[%emt 0:00:30]} 8. Nd5 {[%emt 0:10:30]} O-O {[%emt 0:08:30]} 9. Bxc6 {[%emt 0:17:30]} bxc6 {[%emt 0:05:30]} 10. Nxe7+ {[%emt 0:03:30]} Qxe7 {[%emt 0:00:30]} 11. f4 {[%emt 0:00:30]} f5 {[%emt 0:04:30]} 12. d3 {[%emt 0:02:30]} (12. fxe5 $11 Bxe5 13. Bxe5 Qxe5 14. exf5) 12... fxe4 {[%emt 0:05:30]} 13. dxe4 {[%emt 0:02:30]} Bg4 {[%emt 0:03:30]} 14. h3 {[%emt 0:07:30]} (14. fxe5 $15 {deserves consideration.} Rxf1+ 15. Qxf1) 14... Bxe2 {[%emt 0:00:30]} 15. Qxe2 {[%emt 0:00:00]} exf4 {[%emt 0:00:30]} 16. Bxg7 {[%emt 0:00:00]} Kxg7 {[%emt 0:00:30]} 17. Qg4 {[%emt 0:02:30]} h5 {[%emt 0:04:30]} 18. Qf3 {[%emt 0:01:30]} Rae8 {[%emt 0:00:30]} 19. Rad1 {[%emt 0:00:30]} Rf6 {[%emt 0:01:30]} ({Inferior is} 19... Qxe4 20. Qxe4 Rxe4 21. Rxd6 $11) 20. Rfe1 {[%emt 0:03:30]} Qe5 {[%emt 0:00:30]} 21. c4 {[%emt 0:01:30]} Kh6 {[%emt 0:01:30]} 22. h4 {[%emt 0:07:30]} Rg8 {[%emt 0:01:30]} 23. Re2 {[%emt 0:01:30]} g5 {[%emt 0:01:30]} 24. hxg5+ {[%emt 0:00:30]} Rxg5 {[%emt 0:00:00]} 25. Kh2 {[%emt 0:10:00]} Rg3 {[%emt 0:01:00]} 26. Qf2 {[%emt 0:00:57]} Rfg6 {[%emt 0:00:30]} 27. Kh1 {[%emt 0:02:32] [#]} f3 $1 {[%emt 0:00:30] Deflection} 28. gxf3 {[%emt 0:01:17]} Rh3+ {[%emt 0:00:30]} 29. Qh2 {[%emt 0:00:30]} Rxh2+ {[%emt 0:00:30]} 30. Rxh2 {[%emt 0:00:30]} Qg3 {[%emt 0:00:30]} 31. Rf1 {[%emt 0:00:00]} Rf6 $19 {[%emt 0:00:00]} 32. Rhf2 {[%emt 0:00:00]} Qh3+ {[%emt 0:00:00]} 0-1

[Event "TUR-ch U13-18 Open 2023"]
[Site "Antalya"]
[Date "2023.01.24"]
[Round "4"]
[White "Aydogdu, Ali Emre"]
[Black "Turk, Talha Gunes"]
[Result "0-1"]
[ECO "A26"]
[WhiteElo "1375"]
[BlackElo "1657"]
[Annotator "NA RC COMBH"]
[PlyCount "60"]
[EventDate "2023.01.17"]
[EventType "swiss"]
[EventCountry "TUR"]
[SourceTitle "playchess.com"]
[Source "ChessBase"]
[SourceQuality "1"]
[TimeControl "5400+30"]

1. Nf3 {[%emt 0:01:00]} g6 {[%emt 0:01:00]} 2. g3 {[%emt 0:00:30]} Bg7 {[%emt 0:00:30]} 3. Bg2 {[%emt 0:00:30]} d6 {[%emt 0:00:30]} 4. O-O {[%emt 0:00:00]} e5 {[%emt 0:00:00]} 5. d3 {[%emt 0:00:00]} Ne7 {[%emt 0:00:00]} 6. c4 {[%emt 0:00:30]} O-O {[%emt 0:00:00]} 7. Nc3 {[%emt 0:00:30]} Nbc6 {[%emt 0:00:00]} 8. Rb1 {[%emt 0:02:30]} h6 {[%emt 0:00:30]} 9. b4 {[%emt 0:05:30]} f5 {[%emt 0:00:30]} 10. Nd2 {[%emt 0:10:30]} g5 {[%emt 0:05:30]} 11. b5 {[%emt 0:02:30]} Nb8 {[%emt 0:00:30]} 12. e3 {[%emt 0:02:30]} a6 {[%emt 0:12:30]} 13. a4 {[%emt 0:06:30]} axb5 {[%emt 0:03:30]} 14. axb5 {[%emt 0:00:30]} f4 {[%emt 0:07:30]} 15. Nd5 {[%emt 0:06:30]} Nd7 {[%emt 0:10:30]} 16. Nxe7+ {[%emt 0:01:30]} Qxe7 {[%emt 0:00:30]} 17. Ne4 {[%emt 0:00:30]} Nf6 {[%emt 0:11:30]} 18. Nxf6+ {[%emt 0:02:30]} Qxf6 {[%emt 0:00:00]} 19. exf4 {[%emt 0:02:30]} exf4 {[%emt 0:00:00]} 20. Bb2 {[%emt 0:00:30]} Qg6 {[%emt 0:00:30]} 21. Re1 {[%emt 0:05:30]} Bxb2 {[%emt 0:02:30]} 22. Rxb2 {[%emt 0:01:30]} Qf6 {[%emt 0:00:30]} 23. Bd5+ {[%emt 0:00:30]} Kh8 {[%emt 0:00:00]} 24. Rbe2 {[%emt 0:00:30]} fxg3 {[%emt 0:00:00]} 25. f3 {[%emt 0:04:30]} Qd4+ {[%emt 0:07:30]} 26. Kh1 {[%emt 0:00:30]} g4 {[%emt 0:10:30]} 27. Qd2 {[%emt 0:05:30]} Qf6 {[%emt 0:01:30]} 28. Re6 {[%emt 0:02:30]} Bxe6 {[%emt 0:00:30]} 29. Rxe6 {[%emt 0:00:30]} Ra1+ {[%emt 0:00:00]} 30. Re1 {[%emt 0:03:30]} gxf3 {[%emt 0:00:00]} 0-1

[Event "TUR-ch U13-18 Open 2023"]
[Site "Antalya"]
[Date "2023.01.24"]
[Round "4"]
[White "Arslan, Efe"]
[Black "Cicek, Bilal Emre"]
[Result "1/2-1/2"]
[ECO "B45"]
[WhiteElo "1244"]
[BlackElo "1538"]
[Annotator "NA RC COMBH"]
[PlyCount "56"]
[EventDate "2023.01.17"]
[EventType "swiss"]
[EventCountry "TUR"]
[SourceTitle "playchess.com"]
[Source "ChessBase"]
[SourceQuality "1"]
[TimeControl "5400+30"]

1. e4 {[%emt 0:05:00]} c5 {[%emt 0:00:00]} 2. Nf3 {[%emt 0:00:30]} e6 {[%emt 0:00:00]} 3. d4 {[%emt 0:00:30]} cxd4 {[%emt 0:00:00]} 4. Nxd4 {[%emt 0:00:30]} Nf6 {[%emt 0:00:30]} 5. Nc3 {[%emt 0:00:30]} Nc6 {[%emt 0:00:30]} 6. Nxc6 {[%emt 0:00:30]} bxc6 {[%emt 0:00:30]} 7. e5 {[%emt 0:04:30]} Nd5 {[%emt 0:04:30]} 8. Nxd5 {[%emt 0:00:00]} cxd5 {[%emt 0:00:30]} 9. Bd3 {[%emt 0:07:00]} Ba6 {[%emt 0:00:30]} 10. O-O {[%emt 0:02:30]} Bxd3 {[%emt 0:00:30]} 11. Qxd3 {[%emt 0:03:30]} d6 {[%emt 0:00:30]} 12. Bf4 {[%emt 0:13:30]} Be7 {[%emt 0:06:30]} 13. exd6 {[%emt 0:10:30]} Bxd6 {[%emt 0:00:30]} 14. Bxd6 {[%emt 0:01:30]} Qxd6 {[%emt 0:00:30]} 15. Rfd1 {[%emt 0:02:30]} Rd8 {[%emt 0:06:30]} 16. Qd4 {[%emt 0:03:30]} O-O {[%emt 0:03:30]} 17. Qxa7 {[%emt 0:04:30]} Rb8 {[%emt 0:01:30]} 18. Qd4 {[%emt 0:03:30]} Rb4 {[%emt 0:00:30]} 19. Qc3 {[%emt 0:06:30]} Qb8 {[%emt 0:05:30]} 20. b3 {[%emt 0:03:30]} Rc8 {[%emt 0:00:30]} 21. Qd3 {[%emt 0:00:30]} Re4 {[%emt 0:07:30]} 22. a4 {[%emt 0:07:17]} g6 {[%emt 0:07:30]} 23. a5 {[%emt 0:00:57]} Rb4 {[%emt 0:00:30]} 24. a6 {[%emt 0:04:17]} Qa7 {[%emt 0:00:30]} 25. Rdb1 {[%emt 0:03:22]} Rc7 {[%emt 0:08:30]} 26. c3 {[%emt 0:06:05]} Rb6 {[%emt 0:00:30]} 27. b4 {[%emt 0:00:35]} Qb8 {[%emt 0:02:30]} 28. Qg3 {[%emt 0:01:03]} Ra7 {[%emt 0:00:30]} 1/2-1/2

[Event "TUR-ch U13-18 Open 2023"]
[Site "Antalya"]
[Date "2023.01.24"]
[Round "5"]
[White "Tarhan, Adar"]
[Black "Eroz, Enis"]
[Result "1/2-1/2"]
[ECO "C06"]
[WhiteElo "2321"]
[BlackElo "1827"]
[Annotator "TA"]
[PlyCount "319"]
[EventDate "2023.01.17"]
[EventType "swiss"]
[EventCountry "TUR"]
[SourceTitle "playchess.com"]
[Source "ChessBase"]
[SourceQuality "1"]
[TimeControl "5400+30"]

{[%evp 117,319,59,59,59,59,60,68,59,59,59,60,60,72,0,187,187,316,0,0,0,0,0,0,0,0,0,0,0,0,0,0,0,0,0,0,0,0,0,0,0,0,0,0,0,0,0,0,0,0,0,0,0,0,0,0,0,0,0,0,0,0,0,0,0,0,0,0,0,0,0,0,0,0,0,0,0,0,0,0,0,0,0,0,0,0,0,0,0,0,0,0,0,0,0,0,0,0,0,0,0,0,0,0,0,44,0,0,0,0,0,0,0,0,0,0,0,0,0,0,0,0,0,0,0,0,0,0,0,0,0,0,0,0,0,0,0,0,0,0,0,0,0,0,0,0,0,0,0,0,0,0,0,64,0,0,0,0,0,0,0,0,0,0,0,0,0,0,0,0,0,0,0,0,0,0,0,0,0,0,0,0,0,0,0,0,0,0,0,0,0,0,0,0,0,0,0,0,0,0,0,0,0,0,0]} 1. e4 e6 2. d4 d5 3. Nd2 Nf6 4. e5 Nfd7 5. Bd3 c5 6. c3 Nc6 7. Ne2 cxd4 8. cxd4 f6 9. exf6 Nxf6 10. Nf3 Bd6 11. O-O O-O 12. Bf4 Bxf4 13. Nxf4 Ne4 14. Qc1 Qf6 15. Nh5 Qf5 16. Bxe4 Qxh5 17. Bd3 e5 18. Nxe5 Nxd4 19. Qe3 Nc6 20. Nxc6 bxc6 21. Qc5 Bd7 22. Rae1 Rfe8 23. Ba6 Qg6 24. Rxe8+ Rxe8 25. Rc1 Qg5 26. Bf1 Qd2 27. b4 Qxa2 28. Qc3 Rf8 29. f3 Bf5 30. Qd4 Rf7 31. Rxc6 h6 32. Rc5 Qb1 33. Rxd5 Bg6 34. Ra5 Qe1 35. Ra1 Bb1 36. Qb2 Qe3+ 37. Kh1 Bf5 38. Bc4 Be6 39. Qa2 Re7 40. h3 Bxc4 41. Qxc4+ Kh8 42. Rd1 Re8 43. Qf7 Qe7 44. Qc4 Qe2 45. Qd4 Qe3 46. Qd7 Qe7 47. Qb5 Rd8 48. Rxd8+ Qxd8 49. Qc5 Qd7 50. Kh2 Qf7 51. Qe5 Qf8 52. b5 Qd8 53. Kg3 Qa5 54. f4 Qa2 55. Qc5 Qe2 56. Qd5 Qe1+ 57. Kf3 Qg1 58. Kg4 Qe3 59. Qe5 Qd2 60. Qe8+ Kh7 61. Qe4+ Kh8 62. Kh5 Qd7 63. Qe5 Qf7+ 64. Kh4 Qd7 65. g4 ({White should try} 65. Qe2 $16) 65... Qf7 $2 (65... Qd3 $11 {and Black is okay.}) 66. f5 $18 {[%emt 1:38:30]} Qf8 {[%emt 2:01:08] [#]} (66... Kh7 $142 67. Qe4 Qf6+ 68. Kg3 Qc3+ 69. Kh2 Qd2+ 70. Kg1 Kg8) 67. Qc7 $2 {[%emt 0:00:30]} (67. Qe6 $1 $18 {And now Kh5 would win.} Qc5 68. Qe8+ Kh7 69. Qg6+ Kh8 70. f6 Qf2+ 71. Kh5 gxf6 72. Qe8+ (72. Kxh6 Qe3+ 73. g5 Qxh3+ 74. Qh5 Qxh5+ 75. Kxh5 fxg5 $11) 72... Kg7 73. Qd7+ Kf8 74. Kg6 (74. Kxh6 Qh4+ 75. Kg6 Qg5+ 76. Kh7 Qh4+ 77. Kg6 Qg5+ 78. Kh7 Qh4+ 79. Kg6 $11) 74... Qc2+ 75. Kxf6 Qf2+ 76. Kg6 Qb6+ 77. Kh7) 67... Qf6+ $11 {[%emt 0:00:30]} 68. Kg3 {[%emt 0:00:30]} Qd4 {[%emt 0:00:30]} 69. Qe7 {[%emt 0:00:30]} Qd3+ {[%emt 0:00:30]} 70. Kh4 {[%emt 0:00:30]} Qxb5 {[%emt 0:00:04]} 71. Qxa7 {[%emt 0:00:00]} Qe5 {[%emt 0:00:07]} 72. Qf7 {[%emt 0:00:00]} Qe3 {[%emt 0:00:58]} 73. Qe6 {[%emt 0:00:30]} Qg5+ {[%emt 0:00:30]} 74. Kg3 {[%emt 0:00:30]} Qd2 {[%emt 0:00:30]} 75. Qe7 {[%emt 0:00:30]} Kh7 {[%emt 0:00:30]} 76. Kh4 {[%emt 0:00:30]} (76. f6 $5 Qc3+ $8 77. Kh4 Qxf6+ 78. Qxf6 gxf6 79. Kg3 $11) 76... Qc3 {[%emt 0:00:19]} 77. Qe6 {[%emt 0:00:30]} Qf3 {[%emt 0:00:00]} 78. Qg6+ {[%emt 0:05:30]} Kh8 {[%emt 0:00:29]} 79. Qd6 {[%emt 0:00:30]} Qe3 {[%emt 0:00:30]} 80. Qe6 {[%emt 0:02:08]} Qc3 {[%emt 0:00:43]} 81. Qe4 {[%emt 0:01:51]} Qf6+ {[%emt 0:00:30]} 82. Kg3 {[%emt 0:00:30]} Qc3+ {[%emt 0:00:15]} 83. Kg2 {[%emt 0:00:00]} Qb2+ {[%emt 0:01:30]} 84. Kg1 {[%emt 0:00:39]} Qc3 {[%emt 0:00:37]} 85. Kg2 {[%emt 0:00:30]} Qb2+ {[%emt 0:00:30]} 86. Kg3 {[%emt 0:00:30]} Qc3+ {[%emt 0:00:30]} 87. Qf3 {[%emt 0:00:30]} Qe5+ {[%emt 0:00:30]} 88. Kf2 {[%emt 0:00:30]} Qb2+ {[%emt 0:00:00]} 89. Qe2 {[%emt 0:00:00]} Qc3 {[%emt 0:00:00]} 90. Qe3 {[%emt 0:00:00]} Qb2+ {[%emt 0:00:19]} 91. Kf3 {[%emt 0:00:00]} Qh2 {[%emt 0:00:29]} 92. Ke4 {[%emt 0:00:00]} Qd6 {[%emt 0:01:02]} 93. Qd3 {[%emt 0:00:00]} Qe7+ {[%emt 0:00:43]} 94. Kf4 {[%emt 0:00:22]} Qg5+ {[%emt 0:00:30]} 95. Kg3 {[%emt 0:00:00]} Qc1 {[%emt 0:00:23]} 96. Qd4 {[%emt 0:00:00]} Qe1+ {[%emt 0:00:31]} 97. Qf2 {[%emt 0:00:30]} Qe5+ {[%emt 0:00:30]} 98. Kg2 {[%emt 0:00:00]} Qd5+ {[%emt 0:00:19]} 99. Qf3 {[%emt 0:00:00]} Qd2+ {[%emt 0:00:15]} 100. Kf1 {[%emt 0:00:30]} Qc1+ {[%emt 0:00:31]} 101. Kf2 {[%emt 0:00:30]} Qd2+ {[%emt 0:00:30]} 102. Qe2 {[%emt 0:00:00]} Qf4+ {[%emt 0:00:27]} 103. Kg2 {[%emt 0:00:00]} Qd4 {[%emt 0:00:28]} 104. h4 {[%emt 0:00:00]} Qd5+ {[%emt 0:00:30]} 105. Qf3 {[%emt 0:00:00]} Qd2+ {[%emt 0:00:30]} 106. Kh3 {[%emt 0:00:30]} Qd8 {[%emt 0:00:00]} 107. Qe3 {[%emt 0:00:00]} Qf6 {[%emt 0:00:35]} 108. Qf3 {[%emt 0:02:00]} Qd8 {[%emt 0:00:26]} 109. Qe4 {[%emt 0:03:30]} Qf6 {[%emt 0:00:44]} 110. Qe3 {[%emt 0:00:00]} Qf8 {[%emt 0:00:29]} 111. Qf2 {[%emt 0:03:35]} Qe7 {[%emt 0:01:03]} 112. Qf4 {[%emt 0:00:20]} Qa3+ {[%emt 0:00:48]} 113. Kg2 {[%emt 0:00:30]} Qb2+ {[%emt 0:00:30]} 114. Qf2 {[%emt 0:00:00]} Qb4 {[%emt 0:00:00]} 115. Qf3 {[%emt 0:00:27]} Qd2+ {[%emt 0:00:12]} 116. Qf2 {[%emt 0:00:30]} Qd5+ {[%emt 0:00:00]} 117. Kg3 {[%emt 0:00:24]} Qd6+ {[%emt 0:00:00]} 118. Kh3 {[%emt 0:00:39]} Qd3+ {[%emt 0:01:20]} 119. Qg3 {[%emt 0:00:30]} Qf1+ {[%emt 0:00:30]} 120. Kh2 {[%emt 0:00:30]} Qe2+ {[%emt 0:00:30]} 121. Kg1 {[%emt 0:00:00]} Qd1+ {[%emt 0:00:00]} 122. Kf2 {[%emt 0:00:05]} Qd2+ {[%emt 0:00:03]} 123. Kf3 {[%emt 0:00:30]} Qd3+ {[%emt 0:00:30]} 124. Kg2 {[%emt 0:00:30]} Qe2+ {[%emt 0:00:30]} 125. Kh3 {[%emt 0:00:30]} Qf1+ {[%emt 0:00:30]} 126. Qg2 {[%emt 0:00:30]} Qd3+ {[%emt 0:00:30]} 127. Kh2 {[%emt 0:00:00]} Qd6+ {[%emt 0:00:00]} 128. Qg3 {[%emt 0:00:00]} Qd1 {[%emt 0:01:28]} 129. Qb8+ {[%emt 0:00:30]} Kh7 {[%emt 0:00:30]} 130. Qf4 {[%emt 0:00:30]} Qe2+ {[%emt 0:00:30]} 131. Kg3 {[%emt 0:00:00]} Qe1+ {[%emt 0:00:22]} 132. Qf2 {[%emt 0:00:00]} Qc3+ {[%emt 0:00:30]} 133. Qf3 {[%emt 0:00:30]} Qe5+ {[%emt 0:00:30]} 134. Kh3 {[%emt 0:00:00]} Qe7 {[%emt 0:00:00] [#]} (134... Qa1 $11) 135. g5 {[%emt 0:02:00]} (135. Qd3 $1 $14 Kg8 (135... Qe5 136. Kg2) 136. Qc4+ Kf8 137. Qf4) 135... hxg5 $11 {[%emt 0:00:13]} 136. Qh5+ {[%emt 0:00:30]} Kg8 {[%emt 0:00:00]} 137. Qxg5 {[%emt 0:00:00]} Qe2 {[%emt 0:00:11]} 138. Qf4 {[%emt 0:01:00]} Qd1 {[%emt 0:00:44]} 139. Qc4+ {[%emt 0:00:30]} Kh8 {[%emt 0:00:12]} 140. Qe4 {[%emt 0:00:30]} Qg1 {[%emt 0:01:33]} 141. h5 {[%emt 0:00:30]} Qf1+ {[%emt 0:00:44]} 142. Kg3 {[%emt 0:00:30]} Qg1+ {[%emt 0:00:30]} 143. Kh3 {[%emt 0:00:30]} (143. Kf3 $5 {[%cal Re4e8]} Qh1+ 144. Kf4 Qh4+ 145. Ke3 Qe1+ 146. Kd4 Qb4+ 147. Kd5 Qb7+ 148. Ke5 Qe7+ 149. Kf4 Qh4+ 150. Ke3 Qe1+ 151. Kd4 Qb4+ 152. Kd5 Qb7+ 153. Ke5 Qe7+ 154. Kf4 Qh4+ $11) 143... Qf1+ {[%emt 0:00:30]} 144. Kg4 {[%emt 0:00:00]} Qg1+ {[%emt 0:00:00]} 145. Kf4 {[%emt 0:00:00]} Qh2+ {[%emt 0:00:07]} 146. Kg5 {[%emt 0:00:00]} Qg3+ {[%emt 0:00:30]} 147. Qg4 {[%emt 0:00:00]} Qe3+ {[%emt 0:00:45]} 148. Qf4 {[%emt 0:00:30]} Qg1+ {[%emt 0:00:21]} 149. Kh4 {[%emt 0:00:30]} Qe1+ {[%emt 0:00:21]} 150. Qg3 {[%emt 0:00:30]} Qe4+ {[%emt 0:00:30]} 151. Qg4 {[%emt 0:00:30]} Qe1+ {[%emt 0:00:30]} 152. Kh3 {[%emt 0:00:00]} Qe3+ {[%emt 0:00:15]} 153. Qg3 {[%emt 0:00:00]} Qe4 {[%emt 0:01:03]} 154. Qf2 {[%emt 0:00:00]} Qh1+ {[%emt 0:00:44]} 155. Kg4 {[%emt 0:00:00]} Qd1+ {[%emt 0:00:30]} 156. Kh4 {[%emt 0:00:30]} Qd8+ {[%emt 0:00:30]} 157. Kg4 {[%emt 0:00:00]} Qd1+ {[%emt 0:00:00]} 158. Qf3 {[%emt 0:00:00]} Qg1+ {[%emt 0:00:00]} 159. Kh3 {[%emt 0:00:00]} Qg5 {[%emt 0:00:46]} 160. Qg4 {[%emt 0:00:00]} 1/2-1/2

[Event "TUR-ch U13-18 Open 2023"]
[Site "Antalya"]
[Date "2023.01.24"]
[Round "5"]
[White "Ince, Taylan Ruzgar"]
[Black "Taspinar, Yanki"]
[Result "1/2-1/2"]
[ECO "A07"]
[WhiteElo "2267"]
[BlackElo "2275"]
[Annotator "TA"]
[PlyCount "29"]
[EventDate "2023.01.17"]
[EventType "swiss"]
[EventCountry "TUR"]
[SourceTitle "playchess.com"]
[Source "ChessBase"]
[SourceQuality "1"]
[TimeControl "5400+30"]

{[%evp 9,29,11,15,-10,-12,-8,10,-6,6,6,7,7,6,6,7,0,3,2,3,0,2,0]} 1. Nf3 {[%emt 0:03:00]} d5 {[%emt 0:08:00]} 2. g3 {[%emt 0:00:30]} Nf6 {[%emt 0:00:30]} 3. Bg2 {[%emt 0:00:30]} Bg4 {[%emt 0:01:30]} 4. O-O {[%emt 0:06:30]} Nbd7 {[%emt 0:00:30]} 5. d3 {[%emt 0:01:30]} e5 {[%emt 0:00:30] The position is equal.} 6. Nc3 {[%emt 0:05:30] A07: Réti Opening: New York and Capablanca Systems.} c6 {[%emt 0:03:30]} 7. h3 {[%emt 0:05:30]} Bxf3 {[%emt 0:00:30]} 8. Bxf3 {[%emt 0:00:30]} Bc5 {[%emt 0:00:30]} 9. e4 {[%emt 0:01:30]} dxe4 {[%emt 0:00:30]} 10. Nxe4 {[%emt 0:00:30]} Nxe4 {[%emt 0:00:30]} 11. dxe4 {[%emt 0:01:30]} h6 {[%emt 0:04:30]} 12. c3 {[%emt 0:00:30] [#]} O-O $146 {[%emt 0:00:30]} ({Predecessor:} 12... a5 13. Qb3 Qc7 14. Rd1 Nf6 15. Bd2 O-O 16. Be1 a4 17. Qc4 Qe7 18. b4 axb3 19. axb3 {½-½ Nechepurenko,R (2439)-Zhou,J (2525) Moscow Aeroflot op-B 2006 (1)}) 13. Qe2 {[%emt 0:01:30]} a5 {[%emt 0:00:30]} 14. Rd1 {[%emt 0:00:30] [#] Threatens to win with Bg4.} Qe7 {[%emt 0:00:30]} 15. Be3 {[%emt 0:17:30] A rather calm draw.   Weighted Error Value: White=0.05 (flawless) /Black=0.04 (flawless)} 1/2-1/2

[Event "TUR-ch U13-18 Open 2023"]
[Site "Antalya"]
[Date "2023.01.24"]
[Round "5"]
[White "Gokcek, Kursat Bugra"]
[Black "Ozen, Metehan"]
[Result "1/2-1/2"]
[ECO "C50"]
[WhiteElo "2116"]
[BlackElo "2137"]
[Annotator "TA"]
[PlyCount "41"]
[EventDate "2023.01.17"]
[EventType "swiss"]
[EventCountry "TUR"]
[SourceTitle "playchess.com"]
[Source "ChessBase"]
[SourceQuality "1"]
[TimeControl "5400+30"]

{[%evp 9,41,20,25,12,23,22,19,6,8,0,-4,-1,16,-16,-12,-18,-29,-40,-12,-14,-7,-16,-9,-9,0,0,20,17,22,20,37,20,30,0]} 1. e4 {[%emt 0:01:00]} e5 {[%emt 0:01:00]} 2. Nf3 {[%emt 0:03:30]} Nc6 {[%emt 0:00:30]} 3. Bc4 {[%emt 0:00:30]} Nf6 {[%emt 0:00:00]} 4. d3 {[%emt 0:00:30]} Bc5 {[%emt 0:00:00]} 5. O-O {[%emt 0:01:30]} a6 {[%emt 0:00:30]} 6. a4 {[%emt 0:00:30] C50: Hungarian Defence and Giuoco Pianissimo.} d6 {[%emt 0:00:30]} 7. c3 {[%emt 0:00:30]} Ba7 {[%emt 0:00:30]} 8. Bg5 {[%emt 0:01:30] The position is equal.} h6 {[%emt 0:01:30]} 9. Bh4 {[%emt 0:00:00]} g5 {[%emt 0:01:30]} 10. Bg3 {[%emt 0:00:00]} Qe7 {[%emt 0:04:30]} 11. Nbd2 {[%emt 0:03:30]} Nh7 {[%emt 0:14:30][%cal Bf6h7,Bh7f8,Bf8g6,Bg6f4][%mdl 32]} 12. b4 {[%emt 0:09:30]} Nf8 $1 {[%emt 0:03:30]} 13. Kh1 {[%emt 0:14:30][%cal Od3d4]} Ng6 {[%emt 0:34:30]} (13... h5 $5 {[%cal Rh5h4]} 14. h4 g4 $11) 14. Ng1 {[%emt 0:01:30]} h5 {[%emt 0:02:30][%cal Bh6h5,Bh5h4][%mdl 32] [#] ...h4 would be deadly.} 15. f3 {[%emt 0:01:30]} h4 {[%emt 0:00:30]} 16. Bf2 {[%emt 0:00:30]} Bxf2 {[%emt 0:01:30]} 17. Rxf2 {[%emt 0:03:30]} Nf4 {[%emt 0:04:30] [#]} 18. Ne2 $146 {[%emt 0:02:30]} ({Predecessor:} 18. Nf1 Qf6 19. Ne3 Ne7 20. d4 Nh5 21. Ne2 Ng3+ 22. Kg1 Nxe2+ 23. Bxe2 Ng6 24. Nd5 {½-½ Demchenko,A (2599)-Anton Guijarro,D (2673) FIDE World Cup Europe Hybrid Qual 2021 (3.5)}) 18... Be6 {[%emt 0:00:30]} 19. Nf1 {[%emt 0:03:30]} Qf6 {[%emt 0:00:30]} 20. Ne3 {[%emt 0:06:30]} Ne7 {[%emt 0:05:30]} 21. Kg1 {[%emt 0:10:30] A rather calm draw.   Weighted Error Value: White=0.08 (flawless) /Black=0.07 (flawless)} 1/2-1/2